fUSD/lending_fUSD_20250204
["ID","MTS","AMOUNT","RATE_DAILY","PERIOD"]
[351679316,1738709447070,-150.57,0.00011488,2]
[351679317,1738709447080,-150.57,0.00011488,2]
[351679318,1738709447090,-150.57,0.00011488,2]
[351679319,1738709447099,-150.57,0.00011488,2]
[351679320,1738709447109,-150.57,0.00011488,2]
[351679321,1738709447119,-150.57,0.00011488,2]
[351679322,1738709447128,-150.57,0.00011488,2]
[351679323,1738709447138,-150.57,0.00011488,2]
[351679324,1738709447147,-150.57,0.00011488,2]
[351679325,1738709447156,-150.57,0.00011488,2]
[351679326,1738709447166,-150.57,0.00011488,2]
[351679327,1738709447175,-150.57,0.00011488,2]
[351679328,1738709447185,-150.57,0.00011488,2]
[351679329,1738709447194,-150.57,0.00011488,2]
[351679330,1738709447204,-150.57,0.00011488,2]
[351679331,1738709447213,-184.07547012,0.0001149,2]
[351679332,1738709447222,-222.0996616,0.0001149,2]
[351679333,1738709447232,-765.4644691,0.0001149,2]
[351679334,1738709447241,-3864.2086606,0.0001149,2]
[351679335,1738709447250,-280.834323,0.00011492,2]
[351679336,1738709447259,-339.5689843,0.00011492,2]
[351679337,1738709447269,-398.3036457,0.00011492,2]
[351679338,1738709447279,-457.038307,0.00011492,2]
[351679339,1738709447288,-515.7729684,0.00011492,2]
[351679340,1738709447298,-967.8929466,0.00011492,2]
[351679341,1738709447308,-1170.3214242,0.00011492,2]
[351679342,1738709447317,-1372.7499017,0.00011492,2]
[351679343,1738709447327,-1575.1783793,0.00011492,2]
[351679344,1738709447336,-1777.6068568,0.00011492,2]
[351679345,1738709447345,-4886.1057018,0.00011492,2]
[351679346,1738709447355,-5908.0027429,0.00011492,2]
[351679347,1738709447366,-6929.8997841,0.00011492,2]
[351679348,1738709447375,-7721.74657158,0.00011492,2]
[351679349,1738709447389,-230.05025362,0.00011492,2]
[351679350,1738709447399,-8973.6938664,0.00011492,2]
[351679351,1738709447409,-372.93881985,0.00011498,2]
[351679352,1738709447418,-44368.31706013,0.00011498,2]
[351679353,1738709447429,-350.0,0.00011498,2]
[351679354,1738709447447,-3806.15415052,0.00011498,2]
[351679355,1738709447459,-316.28194254,0.00011498,2]
[351679356,1738709488080,485.73,8.588e-05,2]
[351679357,1738709495960,1138.9815,8.836e-05,2]
[351679358,1738709534374,-1836.7671,8.973e-05,2]
[351679359,1738709544455,-460.2329,8.973e-05,2]
[351679360,1738709587877,226.1657,8.851e-05,2]
[351679365,1738710631958,-8359.409004,8.973e-05,2]
[351679366,1738710631970,-511.04440164,8.973e-05,2]
[351679367,1738710631981,-1472.99276287,8.973e-05,2]
[351679368,1738710631994,-22678.63413149,8.973e-05,2]
[351679369,1738710632003,-153.54058525,9.869e-05,2]
[351679370,1738710632013,-485.50082644,9.869e-05,2]
[351679371,1738710632023,-515.46,0.00010137,2]
[351679372,1738710632032,-1972.6845476,0.00010137,2]
[351679373,1738710632046,-150.52,0.00010137,2]
[351679374,1738710632055,-250.0,0.00010324,2]
[351679375,1738710632063,-322.41,0.00010331,2]
[351679376,1738710632072,-251.2,0.00010345,2]
[351679377,1738710632082,-2000.0,0.00010468,2]
[351679378,1738710632092,-1000.0,0.00010472,2]
[351679379,1738710632309,-485.73,0.00010852,2]
[351679380,1738710632320,-375.88,0.00010852,2]
[351679381,1738710632330,-369.56,0.00010852,2]
[351679382,1738710632340,-373.65,0.00010852,2]
[351679383,1738710632350,-371.88,0.00010852,2]
[351679384,1738710632360,-373.62,0.00010852,2]
[351679385,1738710632369,-150.0,0.00010899,2]
[351679386,1738710632378,-438.55,0.000109,2]
[351679387,1738710632388,-150.0,0.000109,2]
[351679388,1738710632398,-151.68,0.000109,2]
[351679389,1738710632407,-438.55,0.000109,2]
[351679390,1738710632416,-150.0,0.000109,2]
[351679391,1738710632428,-300.0,0.000109,2]
[351679393,1738710632438,-150.0,0.000109,2]
[351679394,1738710632447,-438.55,0.000109,2]
[351679395,1738710632457,-150.0,0.000109,2]
[351679396,1738710632467,-150.0,0.000109,2]
[351679397,1738710632476,-438.06,0.000109,2]
[351679398,1738710632485,-150.0,0.000109,2]
[351679399,1738710632494,-150.0,0.000109,2]
[351679400,1738710632503,-438.46,0.000109,2]
[351679401,1738710632512,-150.0,0.00010959,2]
[351679403,1738710632521,-878.68,0.00011041,2]
[351679405,1738710632531,-372.9,0.00011087,2]
[351679407,1738710632541,-373.8,0.00011138,2]
[351679408,1738710632551,-431.43955898,0.0001116,2]
[351679409,1738710632561,-150.0,0.00011178,2]
[351679410,1738710632570,-302.89,0.00011178,2]
[351679411,1738710632579,-300.0,0.00011178,2]
[351679412,1738710632589,-153.54058525,0.00011227,2]
[351679414,1738710632599,-168.5195845,0.00011269,2]
[351679416,1738710632608,-500.0,0.00011327,2]
[351679418,1738710632617,-487.36,0.00011327,2]
[351679420,1738710632627,-500.0,0.00011327,2]
[351679422,1738710632637,-372.3,0.00011327,2]
[351679423,1738710632646,-165.913,0.00011342,2]
[351679424,1738710632656,-2856.631,0.00011342,2]
[351679425,1738710632665,-300.89089682,0.00011398,2]
[351679426,1738710632678,-2000.0,0.00011407,2]
[351679427,1738710632688,-228.69,0.00011444,2]
[351679428,1738710632697,-176.43255111,0.00011464,2]
[351679429,1738710632707,-1537.63747604,0.00011472,10]
[351679430,1738710632716,-307.51037254,0.00011473,2]
[351679431,1738710632725,-500.0,0.00011473,2]
[351679432,1738710632734,-493.23920564,0.00011479,2]
[351679433,1738710632746,-733.76079436,0.00011479,2]
[351679434,1738710632755,-153.0,0.00011485,2]
[351679435,1738710632764,-153.0,0.00011486,2]
[351679436,1738710632775,-598.5040469,0.00011488,2]
[351679437,1738710632786,-2824.7727239,0.00011488,2]
[351679438,1738710632795,-727.7529036,0.00011488,2]
[351679439,1738710632806,-571.1874908,0.0001149,2]
[351679440,1738710632816,-543.8709347,0.0001149,2]
[351679441,1738710632827,-2695.8461729,0.0001149,2]
[351679442,1738710632838,-2566.919622,0.0001149,2]
[351679443,1738710632849,-694.5372502,0.0001149,2]
[351679444,1738710632860,-661.3215968,0.0001149,2]
[351679445,1738710632871,-922.87133969,0.0001149,2]
[351679446,1738710632882,-516.5543786,0.00011492,2]
[351679447,1738710632893,-489.2378226,0.00011492,2]
[351679448,1738710632904,-461.9212665,0.00011492,2]
[351679449,1738710632914,-2437.993071,0.00011492,2]
[351679450,1738710632939,-2309.06652,0.00011492,2]
[351679451,1738710632953,-2180.139969,0.00011492,2]
[351679452,1738710632964,-628.1059433,0.00011492,2]
[351679453,1738710632977,-594.8902899,0.00011492,2]
[351679454,1738710632988,-561.6746364,0.00011492,2]
[351679455,1738710633000,-500.0,0.00011495,2]
[351679456,1738710633010,-500.0,0.00011495,2]
[351679457,1738710633021,-500.0,0.00011495,2]
[351679458,1738710633032,-500.0,0.00011495,2]
[351679459,1738710633043,-500.0,0.00011495,2]
[351679460,1738710633054,-500.0,0.00011495,2]
[351679461,1738710633068,-500.0,0.00011495,2]
[351679462,1738710633080,-500.0,0.00011496,2]
[351679463,1738710633092,-500.0,0.00011496,2]
[351679464,1738710633104,-500.0,0.00011496,2]
[351679465,1738710633114,-500.0,0.00011496,2]
[351679466,1738710633126,-500.0,0.00011496,2]
[351679467,1738710633137,-575.79,0.00011496,2]
[351679468,1738710633149,-500.0,0.00011496,2]
[351679469,1738710633161,-500.0,0.00011496,2]
[351679470,1738710633172,-500.0,0.00011496,2]
[351679471,1738710633183,-500.0,0.00011496,2]
[351679472,1738710633194,-222.24,0.00011496,2]
[351679473,1738710633205,-500.0,0.00011496,2]
[351679474,1738710633216,-500.0,0.00011496,2]
[351679475,1738710633228,-546.8,0.00011496,2]
[351679476,1738710633239,-380.96,0.00011496,2]
[351679477,1738710633251,-500.0,0.00011496,2]
[351679478,1738710633262,-500.0,0.00011496,2]
[351679479,1738710633273,-500.0,0.00011496,2]
[351679480,1738710633285,-500.0,0.00011496,2]
[351679481,1738710633296,-500.0,0.00011496,2]
[351679482,1738710633307,-245.86,0.00011496,2]
[351679483,1738710633318,-500.0,0.00011496,2]
[351679484,1738710633329,-500.0,0.00011496,2]
[351679485,1738710633340,-500.0,0.00011496,2]
[351679486,1738710633351,-500.0,0.00011496,2]
[351679487,1738710633361,-500.0,0.00011496,2]
[351679488,1738710633372,-500.0,0.00011496,2]
[351679489,1738710633383,-561.6,0.00011496,2]
[351679490,1738710633395,-297.11,0.00011496,2]
[351679491,1738710633405,-274.5,0.00011496,2]
[351679492,1738710633416,-500.0,0.00011496,2]
[351679493,1738710633440,-500.0,0.00011496,2]
[351679494,1738710633451,-500.0,0.00011496,2]
[351679495,1738710633463,-184.5,0.00011496,2]
[351679496,1738710633474,-220.31,0.00011496,2]
[351679497,1738710633485,-500.0,0.00011496,2]
[351679498,1738710633496,-163.41,0.00011496,2]
[351679499,1738710633507,-500.0,0.00011496,2]
[351679500,1738710633518,-500.0,0.00011496,2]
[351679501,1738710633528,-500.0,0.00011496,2]
[351679502,1738710633539,-523.01,0.00011496,2]
[351679503,1738710633550,-500.0,0.00011496,2]
[351679504,1738710633560,-500.0,0.00011496,2]
[351679505,1738710633570,-500.0,0.00011496,2]
[351679506,1738710633580,-500.0,0.00011496,2]
[351679507,1738710633590,-500.0,0.00011496,2]
[351679508,1738710633600,-500.0,0.00011496,2]
[351679509,1738710633610,-500.0,0.00011496,2]
[351679510,1738710633620,-500.0,0.00011496,2]
[351679511,1738710633630,-500.0,0.00011496,2]
[351679512,1738710633639,-711.0,0.00011496,2]
[351679513,1738710633648,-500.0,0.00011496,2]
[351679514,1738710633659,-500.0,0.00011496,2]
[351679515,1738710633668,-500.0,0.00011496,2]
[351679516,1738710633678,-500.0,0.00011496,2]
[351679517,1738710633688,-500.0,0.00011496,2]
[351679518,1738710633699,-500.0,0.00011496,2]
[351679519,1738710633708,-798.24,0.00011496,2]
[351679520,1738710633718,-599.98,0.00011496,2]
[351679521,1738710633728,-500.0,0.00011496,2]
[351679522,1738710633738,-300.24,0.00011496,2]
[351679523,1738710633747,-500.0,0.00011496,2]
[351679524,1738710633757,-500.0,0.00011496,2]
[351679525,1738710633767,-538.77,0.00011496,2]
[351679526,1738710633777,-500.0,0.00011496,2]
[351679527,1738710633787,-500.0,0.00011496,2]
[351679528,1738710633797,-500.0,0.00011496,2]
[351679529,1738710633807,-500.0,0.00011496,2]
[351679530,1738710633817,-500.0,0.00011496,2]
[351679531,1738710633827,-500.0,0.00011496,2]
[351679532,1738710633836,-500.0,0.00011496,2]
[351679533,1738710633846,-500.0,0.00011496,2]
[351679534,1738710633856,-500.0,0.00011496,2]
[351679535,1738710633865,-175.34,0.00011496,2]
[351679536,1738710633875,-500.0,0.00011496,2]
[351679537,1738710633884,-500.0,0.00011496,2]
[351679538,1738710633894,-500.0,0.00011496,2]
[351679539,1738710633904,-500.0,0.00011496,2]
[351679540,1738710633914,-500.0,0.00011496,2]
[351679541,1738710633935,-489.6,0.00011496,2]
[351679542,1738710633944,-820.778,0.00011496,2]
[351679543,1738710633954,-500.0,0.00011496,2]
[351679544,1738710633964,-307.71,0.00011496,2]
[351679545,1738710633975,-500.0,0.00011496,2]
[351679546,1738710633985,-606.54,0.00011496,2]
[351679547,1738710633995,-500.0,0.00011496,2]
[351679548,1738710634005,-500.0,0.00011496,2]
[351679549,1738710634016,-500.0,0.00011496,2]
[351679550,1738710634026,-500.0,0.00011496,2]
[351679551,1738710634036,-500.0,0.00011496,2]
[351679552,1738710634050,-500.0,0.00011496,2]
[351679553,1738710634061,-500.0,0.00011496,2]
[351679554,1738710634073,-500.0,0.00011496,2]
[351679555,1738710634083,-500.0,0.00011496,2]
[351679556,1738710634094,-742.78,0.00011496,2]
[351679557,1738710634104,-582.7,0.00011496,2]
[351679558,1738710634114,-500.0,0.00011496,2]
[351679559,1738710634125,-500.0,0.00011496,2]
[351679560,1738710634135,-500.0,0.00011496,2]
[351679561,1738710634146,-500.0,0.00011496,2]
[351679562,1738710634156,-500.0,0.00011496,2]
[351679563,1738710634166,-500.0,0.00011496,2]
[351679564,1738710634177,-500.0,0.00011496,2]
[351679565,1738710634187,-616.03,0.00011496,2]
[351679566,1738710634197,-1335.0,0.00011496,2]
[351679567,1738710634207,-500.0,0.00011497,2]
[351679568,1738710634218,-500.0,0.00011497,2]
[351679569,1738710634228,-500.0,0.00011497,2]
[351679570,1738710634238,-500.0,0.00011497,2]
[351679571,1738710634249,-500.0,0.00011497,2]
[351679572,1738710634259,-500.0,0.00011497,2]
[351679573,1738710634270,-500.0,0.00011497,2]
[351679574,1738710634281,-500.0,0.00011497,2]
[351679575,1738710634291,-186.46940993,0.00011498,2]
[351679576,1738710634302,-1267827.80501346,0.00011498,2]
[351679577,1738710634328,-10749.52855872,0.00011498,2]
[351679578,1738710634341,-973.725,0.00011498,2]
[351679579,1738710634353,-542.92,0.00011498,2]
[351679580,1738710634366,-479.93,0.00011498,2]
[351679581,1738710634381,-4710.59138291,0.00011498,2]
[351679582,1738710634393,-10568.7378646,0.00011498,2]
[351679583,1738710634413,-351419.65647949,0.00011498,2]
[351679584,1738710634440,-536.79636999,0.00011498,2]
[351679585,1738710634452,-1129.79283877,0.00011498,2]
[351679586,1738710634469,-116295.590155,0.00011498,2]
[351679587,1738710634486,-17417.96625061,0.00011498,2]
[351679588,1738710634498,-17170.5,0.00011498,2]
[351679589,1738710634511,-1914.75277448,0.00011498,2]
[351679590,1738710634523,-1040.09835451,0.00011498,2]
[351679591,1738710634536,-9791.97389091,0.00011498,2]
[351679592,1738710634548,-8903.53786702,0.00011498,2]
[351679593,1738710634559,-6018.81893899,0.00011498,2]
[351679594,1738710634571,-1192.4879524,0.00011498,2]
[351679595,1738710634586,-260.0,0.00011498,2]
[351679600,1738710637987,-500.0,0.00011495,2]
[351679601,1738710637997,-2088.79942019,0.00011498,2]
[351679602,1738710638008,-963.67925742,0.00011498,2]
[351679603,1738710638020,-960.0,0.00011498,2]
[351679604,1738710638031,-606.6,0.00011498,2]
[351679605,1738710638046,-1006.34,0.00011498,2]
[351679606,1738710638128,-246.46,0.00011495,2]
[351679607,1738710638139,-2923.64780985,0.00011498,2]
[351679608,1738710638266,-5548.8,0.00011498,2]
[351679609,1738710638278,-630.62999991,0.00011498,2]
[351679610,1738710638289,-14000.0,0.00011498,2]
[351679611,1738710638301,-6069.20096874,0.00011498,2]
[351679612,1738710638312,-17776.968879,0.00011498,2]
[351679613,1738710638324,-5970.0,0.00011498,2]
[351679614,1738710638336,-5571.0,0.00011498,2]
[351679615,1738710638390,-441.59918346,0.00011498,2]
[351679629,1738710639963,-618.11146766,0.00010946,2]
[351679630,1738710639973,-162.82714395,0.00011497,2]
[351679631,1738710639983,-5261.29097913,0.00011498,2]
[351679632,1738710640203,-5271.58540139,0.00011498,2]
[351679633,1738710640214,-287.96525331,0.00011498,2]
[351679634,1738710640226,-2799.61343731,0.00011498,2]
[351679635,1738710640237,-357.12743561,0.00011498,2]
[351679636,1738710640248,-56022.39999956,0.00011498,2]
[351679637,1738710640260,-4975.64999988,0.00011498,2]
[351679638,1738710640271,-1122.6,0.00011498,2]
[351679639,1738710640283,-350.0,0.00011498,2]
[351679640,1738710640294,-14000.0,0.00011498,2]
[351679641,1738710640309,-311.67324801,0.00011498,2]
[351679642,1738710640352,-171628.58750032,0.00011498,2]
[351679643,1738710640443,-333.35516757,0.00011498,2]
[351679644,1738710640457,-1216.23980655,0.00011498,2]
[351679645,1738710640470,-268.64499508,0.00011498,2]
[351679646,1738710640482,-536.93687994,0.00011498,2]
[351679648,1738710640495,-356.72,0.00011498,2]
[351679680,1738710643772,-500.0,0.00011495,2]
[351679683,1738710643782,-500.0,0.00011497,2]
[351679686,1738710643792,-1096.0,0.00011497,2]
[351679690,1738710643802,-46374.21985993,0.00011498,2]
[351679699,1738710643861,-46084.43400101,0.00011498,2]
[351679701,1738710643872,-4142.57860633,0.00011498,2]
[351679703,1738710643883,-14091.3576094,0.00011498,2]
[351679711,1738710643959,-97785.51846224,0.00011498,2]
[351679713,1738710643971,-416.36595001,0.00011498,2]
[351679717,1738710644054,-2682.8,0.00011498,2]
[351679718,1738710644067,-10024.0001,0.00011498,2]
[351679719,1738710644165,-14262.01599995,0.00011498,2]
[351679722,1738710644180,-739.855356,0.00011498,2]
[351679748,1738710646163,-270.24178561,0.00011496,2]
[351679749,1738710646179,-229.75821439,0.00011496,2]
[351679750,1738710646190,-355.61369832,0.00011497,2]
[351679752,1738710646203,-144.38630168,0.00011497,2]
[351679754,1738710646213,-500.0,0.00011497,2]
[351679755,1738710646223,-515.69170982,0.00011498,2]
[351679756,1738710646235,-303.58411364,0.00011498,2]
[351679757,1738710646247,-284565.41071,0.00011498,2]
[351679758,1738710646277,-4887.7,0.00011498,2]
[351679759,1738710646288,-5369.99999999,0.00011498,2]
[351679760,1738710646370,-993.40280643,0.00011498,2]
[351679761,1738710646383,-1331.58096891,0.00011498,2]
[351679762,1738710646397,-5874.58263601,0.00011498,2]
[351679768,1738710657335,-61549.10011201,0.00011498,2]
[351679769,1738710657347,-5697.78321356,0.00011498,2]
[351679770,1738710657359,-3226.9998,0.00011498,2]
[351679771,1738710657371,-3116.84006,0.00011498,2]
[351679772,1738710657383,-424.659,0.00011498,2]
[351679773,1738710657395,-343.3350004,0.00011498,2]
[351679774,1738710657407,-390.03691899,0.00011498,2]
[351679775,1738710657419,-285.95,0.00011498,2]
[351679776,1738710657435,-289.2,0.00011498,2]
[351679777,1738710667600,437.15,8.809e-05,2]
[351679778,1738710729912,1161.6079,8.836e-05,2]
[351679779,1738710810564,1059.0,8.581e-05,2]
[351679781,1738711486446,415.29,8.298e-05,2]
[351679817,1738711832241,-486.87103,8.973e-05,2]
[351679818,1738711832252,-3993.25037,8.973e-05,2]
[351679819,1738711832262,-1059.0,9.033e-05,2]
[351679820,1738711832271,-700.0,9.5e-05,2]
[351679821,1738711832280,-1059.0,9.508e-05,2]
[351679822,1738711832290,-181.905971,9.608e-05,2]
[351679823,1738711832299,-150.0,9.78e-05,2]
[351679824,1738711832308,-26531.0319399,9.781e-05,7]
[351679825,1738711832317,-5815.51402186,9.781e-05,7]
[351679826,1738711832433,-3365.72132927,9.781e-05,7]
[351679827,1738711832507,-976.53770735,9.781e-05,7]
[351679830,1738711838071,-9991.76044339,9.781e-05,7]
[351679831,1738711838083,-507.43515541,9.781e-05,7]
[351679832,1738711838094,-19481.01725758,9.781e-05,7]
[351679833,1738711838240,-811.899985,9.781e-05,7]
[351679834,1738711838290,-7954.57147206,9.781e-05,7]
[351679835,1738711838301,-5102.17000036,9.781e-05,7]
[351679836,1738711838312,-407.96982943,9.781e-05,7]
[351679837,1738711838324,-411.74045235,9.781e-05,7]
[351679859,1738711840247,-364.312791,9.781e-05,7]
[351679860,1738711840311,-512.6142,9.781e-05,7]
[351679861,1738711840322,-1153.82920904,9.781e-05,7]
[351679862,1738711840380,-13563.33374858,9.781e-05,7]
[351679863,1738711840391,-434.5510852,9.781e-05,7]
[351679878,1738711843250,-9487.53186472,9.781e-05,7]
[351679879,1738711843262,-2529.0322421,9.781e-05,7]
[351679880,1738711843281,-1047.71464973,9.781e-05,7]
[351679881,1738711843421,-1837.75443,9.781e-05,7]
[351679882,1738711843432,-846.21496033,9.781e-05,7]
[351679886,1738711846217,-313.48911855,9.781e-05,7]
[351679887,1738711846462,-26930.88053369,9.781e-05,7]
[351679888,1738711846471,-250.0,9.891e-05,2]
[351679889,1738711846481,-500.0,9.999e-05,2]
[351679890,1738711846491,-500.0,9.999e-05,2]
[351679891,1738711846500,-500.0,9.999e-05,2]
[351679892,1738711846509,-22813.31,0.0001,2]
[351679893,1738711846519,-44357.87052381,0.0001,2]
[351679896,1738711846712,-5857.51934458,0.0001,2]
[351679899,1738711850841,4153.3086,8.836e-05,2]
[351679900,1738712827971,394.52,8.219e-05,2]
[351679901,1738712927514,528.2463,8.699e-05,2]
[351679902,1738712927536,10000.0,8.699e-05,2]
[351679903,1738712927558,3139.9891,8.699e-05,2]
[351679904,1738712945858,6860.0109,8.769e-05,2]
[351679905,1738712945880,1285.99380308,8.769e-05,2]
[351679906,1738712946126,8146.00470308,8.798e-05,2]
[351679907,1738712946411,568.00149384,8.74e-05,2]
[351679908,1738712946439,7578.00320924,8.74e-05,2]
[351679909,1738712946697,2421.99679076,8.748e-05,2]
[351679910,1738712946723,5724.00791232,8.748e-05,2]
[351679911,1738712967172,1039.45584031,8.777e-05,2]
[351679912,1738712967461,1039.45584031,8.792e-05,2]
[351679913,1738712967741,1039.45584031,8.741e-05,2]
[351679914,1738712968020,1039.45584031,8.772e-05,2]
[351679926,1738713032465,-309.081993,8.973e-05,2]
[351679927,1738713032478,-4690.918007,8.973e-05,2]
[351679928,1738713032488,-799.2535552,9.756e-05,2]
[351679929,1738713032568,-357.355385,9.756e-05,2]
[351679930,1738713032671,-3867.55864951,9.756e-05,2]
[351679949,1738713038397,-12311.62956835,9.756e-05,2]
[351679950,1738713038408,-969.47851,9.756e-05,2]
[351679951,1738713038521,-1927.86433194,9.756e-05,2]
[351679952,1738713038530,-1685.35,9.792e-05,2]
[351679953,1738713038540,-1000.0,9.846e-05,2]
[351679954,1738713038550,-257.92,9.912e-05,2]
[351679955,1738713038560,-150.0,9.973e-05,2]
[351679956,1738713038569,-1717.98,9.979e-05,2]
[351679957,1738713038578,-288.28,9.999e-05,2]
[351679958,1738713038588,-379.07708629,9.999e-05,2]
[351679959,1738713038597,-500.0,9.999e-05,2]
[351679960,1738713038607,-500.0,9.999e-05,2]
[351679961,1738713038616,-624.12495579,9.999e-05,2]
[351679963,1738713038626,-500.0,9.999e-05,2]
[351679965,1738713038635,-426.6,9.999e-05,2]
[351679967,1738713038645,-500.0,9.999e-05,2]
[351679969,1738713038654,-477.86,9.999e-05,2]
[351679971,1738713038663,-164.36863982,9.999e-05,2]
[351679973,1738713038673,-500.0,9.999e-05,2]
[351679975,1738713038682,-340.1,9.999e-05,2]
[351679977,1738713038692,-500.0,9.999e-05,2]
[351679979,1738713038701,-500.0,9.999e-05,2]
[351679981,1738713038710,-500.0,9.999e-05,2]
[351679983,1738713038720,-500.0,9.999e-05,2]
[351679985,1738713038729,-500.0,9.999e-05,2]
[351679987,1738713038738,-500.0,9.999e-05,2]
[351679988,1738713038749,-500.0,9.999e-05,2]
[351679990,1738713038760,-500.0,9.999e-05,2]
[351679991,1738713038770,-500.0,9.999e-05,2]
[351679992,1738713038780,-500.0,9.999e-05,2]
[351679993,1738713038789,-500.0,9.999e-05,2]
[351679994,1738713038799,-500.0,9.999e-05,2]
[351679995,1738713038808,-584.7,9.999e-05,2]
[351679996,1738713038817,-500.0,9.999e-05,2]
[351679997,1738713038826,-500.0,9.999e-05,2]
[351679998,1738713038836,-556.52,9.999e-05,2]
[351679999,1738713038846,-166394.96969969,0.0001,2]
[351680000,1738713038856,-371.88328154,0.0001,2]
[351680001,1738713038865,-200.0,0.0001,2]
[351680002,1738713038874,-4000.0,0.0001,2]
[351680003,1738713038884,-876.92,0.0001,2]
[351680004,1738713038893,-1059.0,0.00010009,2]
[351680005,1738713038903,-200.0,0.000101,2]
[351680006,1738713038912,-181.905971,0.00010136,2]
[351680007,1738713038921,-500.0,0.00010136,2]
[351680008,1738713038930,-500.0,0.00010136,2]
[351680009,1738713038941,-181.22,0.00010136,2]
[351680010,1738713038951,-500.0,0.00010136,2]
[351680011,1738713038961,-772.68,0.00010137,2]
[351680012,1738713038970,-489.68,0.00010137,2]
[351680013,1738713038980,-365.75822047,0.00010137,2]
[351680014,1738713038991,-500.0,0.00010273,2]
[351680015,1738713039001,-190.28,0.0001031,2]
[351680016,1738713039010,-500.0,0.0001041,2]
[351680017,1738713039020,-394.52,0.00010463,2]
[351680018,1738713039030,-365.75822047,0.00010464,2]
[351680019,1738713039039,-439.0,0.00010466,2]
[351680020,1738713039051,-1059.0,0.00010509,2]
[351680021,1738713039060,-500.0,0.00010544,2]
[351680022,1738713039070,-500.0,0.00010545,2]
[351680023,1738713039079,-500.0,0.00010545,2]
[351680024,1738713039090,-764.98,0.00010545,2]
[351680025,1738713039100,-500.0,0.00010545,2]
[351680026,1738713039109,-215.3,0.00010545,2]
[351680027,1738713039119,-681.37,0.00010545,2]
[351680028,1738713039128,-302.04,0.00010545,2]
[351680029,1738713039138,-500.0,0.00010545,2]
[351680030,1738713039147,-491.78,0.00010545,2]
[351680031,1738713039156,-500.0,0.00010545,2]
[351680032,1738713039165,-456.77,0.00010545,2]
[351680033,1738713039175,-339.4,0.00010545,2]
[351680034,1738713039184,-500.0,0.00010545,2]
[351680035,1738713039194,-167.33,0.00010545,2]
[351680036,1738713039205,-256.47,0.00010545,2]
[351680037,1738713039215,-538.77,0.00010545,2]
[351680038,1738713039225,-337.76,0.00010545,2]
[351680039,1738713039233,-500.0,0.00010545,2]
[351680040,1738713039241,-500.0,0.00010545,2]
[351680041,1738713039251,-287.45,0.00010545,2]
[351680042,1738713039261,-500.0,0.00010545,2]
[351680043,1738713039270,-500.0,0.00010545,2]
[351680044,1738713039279,-500.0,0.00010545,2]
[351680045,1738713039288,-500.0,0.00010545,2]
[351680046,1738713039298,-500.0,0.00010545,2]
[351680047,1738713039307,-500.0,0.00010545,2]
[351680048,1738713039316,-500.0,0.00010545,2]
[351680049,1738713039325,-500.0,0.00010545,2]
[351680050,1738713039334,-500.0,0.00010545,2]
[351680051,1738713039344,-500.0,0.00010545,2]
[351680052,1738713039353,-500.0,0.00010545,2]
[351680053,1738713039361,-500.0,0.00010545,2]
[351680054,1738713039370,-500.0,0.00010545,2]
[351680055,1738713039379,-500.0,0.00010545,2]
[351680056,1738713039596,-304.87232033,0.00010545,2]
[351680057,1738713039606,-211.34,0.00010545,2]
[351680058,1738713039616,-500.0,0.00010545,2]
[351680059,1738713039626,-500.0,0.00010545,2]
[351680060,1738713039635,-500.0,0.00010545,2]
[351680061,1738713039645,-500.0,0.00010545,2]
[351680062,1738713039654,-500.0,0.00010545,2]